bitfinex/quotes_ETHUSD_20240824
["timestamp","ask_amount","ask_price","bid_price","bid_amount"]
[1724528791279,2.3478,2801.0,2800.5,7.14141]
[1724528791964,2.3478,2801.0,2800.6,0.55859943]
[1724528792176,2.3478,2801.0,2800.6,3.57064]
[1724528792382,2.3478,2801.0,2800.6,4.284774]
[1724528795661,2.3478,2801.0,2800.7,0.55859789]
[1724528795867,2.3478,2801.0,2800.6,4.284774]
[1724528796066,2.3478,2801.0,2800.7,0.55858701]
[1724528796281,2.3478,2801.0,2800.6,4.284774]
[1724528796477,2.3478,2801.0,2800.7,0.55859002]
[1724528796668,2.3478,2801.0,2800.6,4.284774]
[1724528797454,2.4862,2801.2,2800.7,4.3560574]
[1724528797654,2.4862,2801.2,2800.7,3.57051]
[1724528800499,2.4862,2801.2,2800.8,0.89369563]
[1724528800651,2.4862,2801.2,2800.7,3.57051]
[1724528800997,2.4862,2801.2,2800.8,0.89369421]
[1724528801163,2.4862,2801.2,2800.7,3.57051]
[1724528801895,6.0561,2801.2,2800.8,0.89369624]
[1724528802069,6.0561,2801.2,2800.7,3.57051]
[1724528802483,6.0561,2801.2,2800.8,0.89369685]
[1724528802724,6.0561,2801.2,2800.7,3.57051]
[1724528802930,6.0561,2801.2,2800.8,0.89369721]
[1724528803135,6.0561,2801.2,2800.7,3.57051]
[1724528803779,2.4862,2801.2,2800.7,3.57051]
[1724528810179,2.4862,2801.2,2800.8,3.57036]
[1724528812081,2.4862,2801.2,2800.7,4.43885236]
[1724528814232,2.4862,2801.2,2800.7,8.00931236]
[1724528814633,2.4862,2801.2,2800.7,4.43880236]
[1724528815558,2.4862,2801.2,2800.7,8.00926236]
[1724528815954,2.4862,2801.2,2800.7,8.00925236]
[1724528816433,2.4862,2801.2,2800.7,4.43878236]
[1724528816641,2.4862,2801.2,2800.7,8.00923236]
[1724528816856,2.4862,2801.2,2800.8,0.44387824]
[1724528819066,2.4862,2801.2,2800.8,4.01426824]
[1724528820063,2.4862,2801.2,2800.8,4.01420824]
[1724528820265,1.87293892,2801.3,2801.0,3.5701]
[1724528820449,2.2783,2801.4,2801.0,3.5701]
[1724528820450,4.15123892,2801.4,2801.0,3.5701]
[1724528821887,4.15123892,2801.4,2801.1,3.56998]
[1724528822269,1.87293892,2801.5,2801.1,3.56998]
[1724528822896,2.2783,2801.6,2801.1,3.56998]
[1724528823068,1.87332596,2801.5,2801.1,4.72534058]
[1724528823448,1.87332596,2801.5,2801.1,1.15536058]
[1724528823894,1.87332596,2801.5,2801.1,4.72536058]
[1724528824390,1.87332596,2801.5,2801.1,1.15536058]
[1724528827755,1.87309992,2801.5,2801.1,1.15536058]
[1724528829858,1.87309992,2801.6,2801.2,4.27391206]
[1724528830062,1.87309992,2801.7,2801.2,7.84371206]
[1724528830300,1.87309992,2801.7,2801.2,7.84372206]
[1724528830602,1.87309992,2801.8,2801.3,0.93859357]
[1724528830801,1.87248061,2801.8,2801.2,0.70411206]
[1724528830999,3.56953,2801.5,2800.9,3.5702]
[1724528831217,2.28,2801.4,2800.9,3.5702]
[1724528831499,2.28,2801.4,2801.0,0.86827436]
[1724528831877,2.28,2801.4,2801.0,4.43841436]
[1724528834507,2.28,2801.4,2800.7,7.31]
[1724528834783,7.72257837,2801.3,2800.7,10.88044]
[1724528834978,7.72257837,2801.3,2800.8,3.57039]
[1724528834979,1.87275837,2801.2,2800.8,3.57039]
[1724528835722,4.15275837,2801.3,2800.8,5.015489]
[1724528836798,4.15275837,2801.2,2800.7,7.31]
[1724528837012,4.15275837,2801.1,2800.7,7.31]
[1724528837342,7.72277837,2801.1,2800.7,7.31]
[1724528837846,4.15334726,2801.1,2800.7,7.31]
[1724528838535,4.15334726,2801.1,2800.6,3.57056]
[1724528839191,1.87338466,2801.0,2800.6,3.57056]
[1724528839822,1.87338466,2801.0,2800.5,3.57075]
[1724528840493,1.87338466,2801.0,2800.6,3.57064]
[1724528842356,1.87353563,2801.0,2800.6,3.57064]
[1724528842689,1.87348503,2801.0,2800.6,3.57064]
[1724528843723,1.87348503,2801.0,2800.6,7.1412]
[1724528843959,1.87348503,2801.0,2800.6,7.14114]
[1724528844342,1.87348503,2801.0,2800.7,3.57051]
[1724528844575,1.87339548,2801.0,2800.7,3.57051]
[1724528846786,1.87339548,2801.1,2800.7,5.981011]
[1724528847080,1.87339548,2801.1,2800.9,3.57025]
[1724528847732,1.87323586,2801.1,2800.9,3.57025]
[1724528847943,1.87323586,2801.2,2800.9,3.57025]
[1724528848252,1.87323586,2801.2,2800.9,7.14044]
[1724528848869,1.87323586,2801.2,2800.9,3.57019]
[1724528851259,2.28,2801.3,2800.9,3.57019]
[1724528851260,1.87323586,2801.1,2800.9,3.57019]
[1724528852557,1.87331869,2801.1,2800.9,3.57019]
[1724528852977,1.87331869,2801.2,2800.9,3.57018]
[1724528853465,1.87331869,2801.1,2800.9,3.57018]
[1724528853970,1.87331869,2801.2,2800.9,3.57018]
[1724528854470,2.28,2801.3,2800.9,3.57018]
[1724528854471,1.87331869,2801.1,2800.9,3.57018]
[1724528854641,2.3462,2801.0,2800.9,3.57018]
[1724528856838,2.3462,2801.0,2800.9,4.12876029]
[1724528857056,2.3462,2801.0,2800.9,0.55858029]
[1724528858632,3.12514387,2801.0,2800.3,10.88098]
[1724528858839,4.21951869,2800.7,2800.4,0.55861196]
[1724528859147,4.21951869,2800.7,2800.1,2.8741983]
[1724528859148,2.3462,2800.7,2800.5,0.55861196]
[1724528859353,2.3462,2800.7,2800.1,2.3195]
[1724528859553,2.3462,2800.7,2800.2,2.74360531]
[1724528859752,2.3462,2800.7,2800.3,0.55865531]
[1724528859983,2.3462,2800.7,2800.4,0.55865531]
[1724528860134,2.3462,2800.7,2800.5,0.55865531]
[1724528860341,2.3462,2800.7,2800.6,0.55865531]
[1724528860535,2.3462,2800.7,2800.3,3.57103]
[1724528860856,2.3462,2800.7,2800.4,0.55864676]
[1724528861183,4.21951869,2800.7,2800.1,3.57119]
[1724528861375,5.91676,2800.7,2800.2,0.55866346]
[1724528861576,5.91676,2800.7,2800.3,0.55866346]
[1724528861755,2.3466,2800.6,2800.4,0.55866346]
[1724528861960,2.3466,2800.6,2800.5,0.55866346]
[1724528862360,3.12564787,2800.6,2799.9,23.27152]
[1724528862554,5.44413869,2800.5,2800.0,0.5587195]
[1724528862778,5.44413869,2800.5,2800.1,0.5587195]
[1724528863078,5.44413869,2800.5,2799.9,23.27152]
[1724528863264,3.57082,2800.5,2800.0,1.45267089]
[1724528863464,3.57082,2800.5,2799.9,23.27152]
[1724528863465,3.57082,2800.5,2800.1,0.55871967]
[1724528863656,5.44413869,2800.5,2800.2,0.55871967]
[1724528863862,5.44413869,2800.5,2799.9,23.27152]
[1724528863863,4.86117123,2800.5,2799.9,23.27152]
[1724528864081,3.57082,2800.5,2800.0,0.55872261]
[1724528864289,3.57082,2800.5,2800.1,0.55872261]
[1724528864483,3.57082,2800.5,2799.9,23.27152]
[1724528864689,3.57082,2800.5,2800.0,0.55872354]
[1724528864873,2.3466,2800.4,2800.1,0.55874765]
[1724528865073,2.3466,2800.4,2799.9,23.27152]
[1724528865074,2.3466,2800.4,2799.9,3.57152]
[1724528865475,2.3466,2800.4,2800.0,0.55875052]
[1724528865816,2.3466,2800.4,2799.9,3.57152]
[1724528865969,2.3466,2800.4,2800.0,0.55875283]
[1724528866165,2.3466,2800.4,2799.9,3.57152]
[1724528866455,2.3466,2800.4,2800.0,0.5587567]
[1724528866609,2.3466,2800.4,2799.9,3.57152]
[1724528866790,2.3466,2800.4,2800.0,0.55874036]
[1724528866989,2.3466,2800.4,2799.9,3.57152]
[1724528867310,2.3466,2800.4,2800.0,0.55874153]
[1724528867514,2.3466,2800.4,2799.9,3.57152]
[1724528867802,2.3466,2800.4,2800.0,0.55874357]
[1724528868011,2.3466,2800.4,2799.9,3.57152]
[1724528868380,2.3466,2800.4,2800.0,0.55874164]
[1724528868705,2.3466,2800.4,2799.9,3.57152]
[1724528868871,2.3466,2800.4,2800.0,0.5587424]
[1724528869205,2.3466,2800.4,2799.9,3.57152]
[1724528869411,5.91751,2800.4,2799.7,10.88178]
[1724528869703,3.57106,2800.3,2799.8,0.55874169]
[1724528869904,3.57106,2800.3,2799.7,13.95136936]
[1724528870073,3.57106,2800.3,2799.8,0.55877036]
[1724528870286,3.57106,2800.3,2799.7,13.95136936]
[1724528870482,3.57106,2800.3,2799.8,1.61023252]
[1724528870694,3.57106,2800.3,2799.8,1.05146891]
[1724528870900,2.3263,2800.2,2799.8,1.05146891]
[1724528871107,2.88625894,2800.2,2799.8,1.05146891]
[1724528871308,2.88625894,2800.2,2799.7,13.95136936]
[1724528872493,2.88625894,2800.2,2799.8,0.55877081]
[1724528872692,2.88625894,2800.2,2799.7,13.95136936]
[1724528872891,2.88625894,2800.2,2799.8,0.55875651]
[1724528873115,2.88625894,2800.2,2799.7,13.95136936]
[1724528873116,0.55995894,2800.2,2799.7,13.95136936]
[1724528873315,0.55995894,2800.2,2799.8,4.52619609]
[1724528873515,0.55995894,2800.2,2799.8,3.9674583]
[1724528874130,0.55995894,2800.2,2799.9,3.57149]
[1724528874930,0.55995894,2800.2,2799.8,1.5493583]
[1724528875423,0.55995894,2800.2,2799.8,5.1210383]
[1724528876732,0.55995894,2800.2,2799.9,1.49394584]
[1724528878236,0.55995894,2800.2,2799.8,1.5493583]
[1724528885107,0.55995894,2800.2,2799.8,5.1210283]
[1724528885948,0.55995894,2800.2,2799.8,1.5493583]
[1724528887342,5.89735,2800.3,2799.8,1.5493583]
[1724528889720,5.89735,2800.3,2799.7,10.8817]
[1724528889920,5.89735,2800.3,2799.8,0.89402568]
[1724528890123,5.8967,2800.1,2799.7,7.31]
[1724528890316,2.3254,2800.0,2799.7,7.31]
[1724528891936,2.3254,2800.0,2799.5,3.57199]
[1724528892136,2.3254,2800.0,2799.6,0.89411157]
[1724528892342,2.3254,2800.0,2799.7,0.89411157]
[1724528892543,2.3254,2800.0,2799.5,3.57199]
[1724528892906,2.3254,2800.0,2799.6,0.89412438]
[1724528893024,2.3254,2800.0,2799.6,0.89411048]
[1724528893224,2.3254,2800.0,2799.7,0.89411048]
[1724528893529,2.3254,2800.0,2799.5,3.57199]
[1724528893762,2.3254,2800.0,2799.6,0.89410574]
[1724528893926,2.3254,2800.0,2799.5,3.57199]
[1724528893927,2.3254,2800.0,2799.7,0.89410574]
[1724528894126,2.3254,2800.0,2799.5,3.57199]
[1724528894323,2.3254,2800.0,2799.6,0.89410102]
[1724528894556,2.3254,2800.0,2799.7,0.89410102]
[1724528894875,2.3254,2800.0,2799.5,3.57199]
[1724528895022,2.3254,2800.0,2799.6,0.89410899]
[1724528895225,2.3254,2800.0,2799.7,0.89410899]
[1724528895483,2.3254,2800.0,2799.5,3.57199]
[1724528895677,2.3254,2800.0,2799.6,0.89410002]
[1724528895862,2.3254,2800.0,2799.5,3.57199]
[1724528896230,2.3254,2800.0,2799.6,0.89410921]
[1724528896467,2.3254,2800.0,2799.7,0.89410921]
[1724528896674,2.3254,2800.0,2799.5,3.57199]
[1724528896877,2.3254,2800.0,2799.6,0.89410951]
[1724528897077,2.3254,2800.0,2799.5,3.57199]
[1724528897387,2.3254,2800.0,2799.6,0.89411835]
[1724528897537,2.3254,2800.0,2799.5,7.14398]
[1724528897735,2.3254,2800.0,2799.6,4.46603638]
[1724528898044,2.3254,2800.0,2799.7,0.89411638]
[1724528898248,2.3254,2800.0,2799.6,3.57192]
[1724528898544,2.3254,2800.0,2799.7,0.89410694]
[1724528898745,2.3254,2800.0,2799.6,3.57192]
[1724528902096,3.57162,2799.9,2799.3,10.88225]
[1724528902299,5.94138,2799.8,2799.3,7.31]
[1724528902492,3.57162,2799.9,2799.4,0.89414847]
[1724528902493,2.3696,2799.6,2799.4,0.89414847]
[1724528902665,2.3696,2799.6,2799.3,7.31]
[1724528903190,2.3696,2799.6,2799.3,10.88231]
[1724528903407,2.3696,2799.6,2799.3,12.82222111]
[1724528903697,2.3696,2799.6,2799.4,0.8941812]
[1724528903992,2.3696,2799.6,2799.3,12.82222111]
[1724528904492,4.24285643,2799.8,2799.3,12.82222111]
[1724528904793,4.24285643,2799.8,2799.4,0.89418157]
[1724528904794,2.3696,2799.8,2799.4,0.89418157]
[1724528904949,2.3696,2799.8,2799.3,12.82222111]
[1724528905147,2.3696,2799.8,2799.4,0.89414761]
[1724528905352,2.3696,2799.8,2799.3,12.82222111]
[1724528905553,2.3696,2799.8,2799.4,0.89414939]
[1724528905789,2.3696,2799.8,2799.3,12.82222111]
[1724528905952,2.3696,2799.8,2799.4,6.97861347]
[1724528906155,2.3696,2799.8,2799.4,3.40644347]
[1724528906359,7.81455643,2799.8,2799.3,7.31]
[1724528906658,1.87325643,2799.7,2799.3,7.31]
[1724528907157,2.3696,2799.6,2799.3,7.31]
[1724528909868,2.3696,2799.6,2799.2,23.27241]
[1724528910092,2.3696,2799.6,2799.2,19.7]
[1724528913912,5.93957,2799.5,2798.9,7.31]
[1724528914070,5.93957,2799.5,2799.0,7.1453]
[1724528914071,2.3675,2799.5,2799.0,7.1453]
[1724528914266,2.3675,2799.5,2799.0,3.57263]
[1724528916901,2.3675,2799.5,2799.0,7.14526]
[1724528917098,2.3675,2799.5,2799.1,3.57256]
[1724528918090,2.3675,2799.5,2798.9,13.51333464]
[1724528918091,2.3675,2799.3,2798.9,7.31]
[1724528918645,5.93991,2799.3,2798.9,7.31]
[1724528918943,5.93991,2799.3,2798.7,3.573]
[1724528919293,2.3675,2799.2,2798.7,3.573]
[1724528919488,3.90971364,2799.2,2798.7,3.573]
[1724528921411,7.48216364,2799.2,2798.7,3.573]
[1724528921911,8.68721364,2799.2,2798.5,3.57322]
[1724528922118,5.94009,2799.1,2798.5,3.57322]
[1724528922311,2.3675,2799.0,2798.5,3.57322]
[1724528922689,5.94021,2799.0,2798.5,3.57322]
[1724528923329,3.25242793,2799.0,2798.3,3.57354]
[1724528923628,3.5729,2798.9,2798.3,3.57354]
[1724528924908,3.5729,2798.9,2798.3,7.14706]
[1724528926236,2.3675,2799.0,2798.3,7.14706]
[1724528926237,2.3675,2799.0,2798.4,3.57346]
[1724528926397,2.3675,2799.0,2798.5,3.57332]
[1724528926599,2.3675,2799.0,2798.5,3.57325]
[1724528926802,2.3675,2799.0,2798.5,4.08479636]
[1724528927211,3.90971364,2799.2,2798.5,6.53959636]
[1724528927547,2.3675,2799.2,2798.7,3.57303]
[1724528928048,2.3675,2799.2,2798.7,7.14606]
[1724528928255,2.3675,2799.2,2798.7,3.57303]
[1724528929007,5.93996,2799.2,2798.5,10.11285636]
[1724528929211,5.93996,2799.2,2798.6,3.57312]
[1724528930474,7.23237684,2799.2,2798.6,3.57312]
[1724528930682,7.48217364,2799.2,2798.7,3.57304]
[1724528930979,7.48217364,2799.2,2798.5,3.57323]
[1724528931921,3.57259,2799.1,2798.5,3.57323]
[1724528932472,2.4269,2799.0,2798.5,3.57323]
[1724528933164,2.4269,2799.0,2798.5,7.14649]
[1724528933334,2.4269,2799.0,2798.6,3.5732]
[1724528937711,2.4269,2799.0,2798.5,3.57323]
[1724528939071,5.99961,2799.0,2798.3,3.5735]
[1724528939358,5.99961,2799.0,2798.4,3.57338]
[1724528941282,2.4269,2798.9,2798.4,3.57338]
[1724528942079,2.4269,2798.9,2798.5,3.57333]
[1724528942770,2.4269,2798.9,2798.6,3.57318]
[1724528943159,2.33113103,2799.0,2798.7,3.57301]
[1724528945480,2.33113103,2799.0,2798.8,0.55900853]
[1724528945705,2.33113103,2799.0,2798.7,3.57301]
[1724528945880,5.44281551,2799.3,2798.7,3.57301]
[1724528946290,2.4269,2799.2,2798.7,3.57301]
[1724528946860,5.99937,2799.2,2798.7,3.57301]
[1724528947045,2.4269,2799.1,2798.5,7.14649]
[1724528947535,4.29815166,2799.1,2798.5,3.57323]
[1724528947682,4.29815166,2799.1,2798.5,7.1465]
[1724528947881,4.85835806,2799.1,2798.5,3.57323]
[1724528948339,8.43093806,2799.1,2798.5,3.57323]
[1724528948540,8.43093806,2799.1,2798.5,7.14649]
[1724528948887,8.43093806,2799.1,2798.5,3.57323]
[1724528949287,2.4269,2798.9,2798.4,3.57341]
[1724528949934,3.57291,2798.9,2798.3,3.57348]
[1724528950135,2.4269,2798.8,2798.3,3.57348]
[1724528951270,2.3007,2798.7,2798.3,3.57348]
[1724528952640,2.3007,2798.7,2798.3,4.01175498]
[1724528953167,2.3007,2798.7,2798.3,3.57348]
[1724528959794,2.3007,2798.7,2798.4,3.57346]
[1724528962134,4.17317592,2798.7,2798.4,3.57346]
[1724528963513,1.87247592,2798.6,2798.4,3.57346]
[1724528964391,1.87247592,2798.6,2798.2,3.57362]
[1724528964617,1.87247592,2798.6,2798.3,3.57358]
[1724528966245,1.87247592,2798.6,2798.3,7.14716]
[1724528966400,1.87247592,2798.6,2798.4,0.714716]
[1724528966596,1.87247592,2798.6,2798.3,7.14709]
[1724528969588,1.87247592,2798.6,2798.4,0.89454234]
[1724528969833,1.87247592,2798.6,2798.4,3.57339]
[1724528970130,1.87247592,2798.7,2798.6,3.57321]
[1724528970505,1.87247592,2798.9,2798.8,3.57295]
[1724528970705,1.87247592,2799.0,2798.9,3.57283]
[1724528971101,1.87539531,2799.1,2798.8,3.57295]
[1724528971322,1.87539531,2799.0,2798.8,3.57295]
[1724528971508,1.87539531,2799.1,2798.8,3.57295]
[1724528971708,1.87539531,2799.1,2798.8,7.14583]
[1724528972009,2.3616,2799.0,2798.6,7.14625]
[1724528972382,2.3616,2799.0,2798.7,3.57306]
[1724528972579,1.87539531,2798.9,2798.7,3.57306]
[1724528973404,1.87539531,2799.0,2798.7,4.287678]
[1724528973732,1.87539531,2799.0,2798.7,0.714618]
[1724528973906,1.87539531,2799.0,2798.8,3.57284]
[1724528975540,1.87539531,2799.0,2798.6,7.14624]
[1724528975736,1.87539531,2799.0,2798.7,0.89443398]
[1724528975886,5.93392,2799.3,2798.8,0.4467554]
[1724528976089,1.87536344,2799.0,2798.6,3.57312]
[1724528977190,1.87536344,2798.9,2798.6,3.57312]
[1724528977390,4.23696344,2798.9,2798.6,3.57312]
[1724528978398,2.3616,2798.9,2798.6,3.57312]
[1724528978932,1.87536344,2799.0,2798.6,3.57312]
[1724528979146,1.87536344,2799.0,2798.7,1.25173394]
[1724528979466,1.87536344,2799.0,2798.7,0.357312]
[1724528980198,1.87536344,2798.9,2798.7,0.357312]
[1724528980812,1.87535875,2799.0,2798.7,0.357312]
[1724528981497,1.87535875,2798.9,2798.6,3.57312]
[1724528984136,1.87535875,2799.0,2798.6,3.57312]
[1724528985627,2.3616,2799.1,2798.6,3.57312]
[1724528985835,1.8752917,2799.0,2798.6,3.57312]
[1724528986043,1.8752917,2799.0,2798.6,3.97934645]
[1724528986622,1.8752917,2799.0,2798.6,3.57312]
[1724528990814,1.87522908,2799.0,2798.6,3.57312]
[1724528992061,1.87522908,2799.0,2798.7,0.89439265]
[1724528992388,1.87522908,2799.0,2798.6,3.57312]
[1724528992586,4.23682908,2799.1,2798.7,0.89438676]
[1724528992726,4.23682908,2799.1,2798.6,3.57312]
[1724528993046,1.87522908,2799.0,2798.7,0.89438895]
[1724528993221,1.87522908,2799.0,2798.7,3.57308]
[1724528993418,1.87522908,2799.1,2798.7,3.57308]
[1724528995543,1.87490604,2799.1,2798.7,3.57308]
[1724528995747,1.87490604,2799.0,2798.7,3.57308]
[1724528997171,1.87490604,2799.1,2798.7,3.57308]
[1724528997736,1.87490604,2799.0,2798.7,3.57308]
[1724528997968,3.57246,2799.2,2798.7,3.57308]
[1724528997969,1.87490604,2799.1,2798.7,3.57308]
[1724529000465,1.87490568,2799.1,2798.7,3.57308]
[1724529000639,1.87490568,2799.0,2798.7,3.57308]
[1724529000844,1.87490568,2799.1,2798.7,3.57308]
[1724529001481,1.87490568,2799.0,2798.7,3.57308]
[1724529003628,4.34550568,2798.9,2798.3,7.14703]
[1724529003833,1.87490568,2798.8,2798.3,3.5735]
[1724529004134,1.87527122,2798.9,2798.4,2.4178]
[1724529004465,1.87527122,2798.9,2798.5,2.01250026]
[1724529004669,1.87527122,2798.9,2798.4,2.4178]
[1724529005259,1.87527122,2798.9,2798.5,3.57332]
[1724529005958,1.87527122,2798.9,2798.6,0.55901974]
[1724529006158,1.87527122,2798.9,2798.7,0.55901974]
[1724529006357,1.87527122,2798.9,2798.8,0.55901974]
[1724529006975,1.87527122,2799.0,2798.8,0.55901974]
[1724529007267,1.87527122,2799.0,2798.9,0.55901974]
[1724529008474,1.87527122,2799.0,2798.9,0.55898806]
[1724529008671,1.87527122,2799.0,2798.8,3.57295]
[1724529008873,1.87553393,2799.0,2798.9,0.55899397]
[1724529009778,1.87553393,2799.1,2798.9,0.55899397]
[1724529009958,1.87553393,2799.1,2799.0,0.55899397]
[1724529010152,5.82298072,2799.3,2799.0,0.55899397]
[1724529010352,5.82298072,2799.3,2799.1,0.5589808]
[1724529010552,5.82298072,2799.3,2798.8,3.57295]
[1724529010749,1.8758032,2799.0,2798.9,0.55897943]
[1724529010977,1.8758032,2799.1,2798.9,0.55897943]
[1724529011279,1.8758032,2799.1,2799.0,0.55897943]
[1724529011443,1.8758032,2799.1,2798.8,3.57295]
[1724529011642,1.8758032,2799.1,2798.9,0.55897194]
[1724529011889,1.87600643,2799.0,2798.8,3.57295]
[1724529012041,1.87600643,2799.0,2798.9,0.55897194]
[1724529013682,3.57234,2799.3,2798.9,0.55897194]
[1724529013841,6.28630459,2799.3,2799.0,0.55897194]
[1724529014043,6.28630459,2799.3,2798.6,7.14622]
[1724529014343,6.28630459,2799.3,2798.7,0.55899962]
[1724529014547,3.57245,2799.2,2798.8,0.55900913]
[1724529014777,3.57245,2799.2,2798.9,0.55900913]
[1724529014950,3.57245,2799.2,2799.0,0.55900913]
[1724529015155,3.57245,2799.2,2798.6,3.57309]
[1724529015357,3.57245,2799.2,2798.7,0.55901347]
[1724529015695,3.57259,2799.1,2798.8,0.55901347]
[1724529015887,3.57259,2799.1,2798.9,0.55901347]
[1724529016058,3.57259,2799.1,2798.6,3.57309]
[1724529016255,3.57259,2799.1,2798.7,0.55902995]
[1724529016459,3.57259,2799.1,2798.8,0.55902995]
[1724529016756,3.57259,2799.1,2798.6,3.57309]
[1724529017103,3.57259,2799.1,2798.7,0.55903689]
[1724529017248,3.57259,2799.1,2798.8,0.55903689]
[1724529017554,5.92969,2799.1,2798.9,0.55903689]
[1724529017880,5.92969,2799.1,2798.6,3.57309]
[1724529018261,5.92969,2799.1,2798.7,0.5590372]
[1724529018477,5.92969,2799.1,2798.6,3.57309]
[1724529019978,1.87724531,2798.8,2798.6,3.57309]
[1724529020288,1.87724531,2798.8,2798.6,4.67904036]
[1724529021052,1.87724531,2798.8,2798.6,1.10595036]
[1724529022460,1.87724531,2798.8,2798.5,3.57333]
[1724529024561,1.87719252,2798.8,2798.5,3.57333]
[1724529025773,1.87719252,2798.9,2798.5,3.57333]
[1724529027985,1.87719252,2798.9,2798.5,5.94413]
[1724529028305,1.87719252,2799.0,2798.6,8.25230436]
[1724529028515,1.87719252,2799.0,2798.7,3.57306]
[1724529028814,1.87719252,2799.0,2798.8,2.3708]
[1724529029310,3.75406954,2799.0,2798.8,2.3708]
[1724529029489,1.87687702,2799.0,2798.8,2.3708]
[1724529034418,1.87657856,2799.0,2798.8,2.3708]
[1724529036721,1.87651678,2799.0,2798.8,2.3708]
[1724529037597,1.87651678,2799.1,2798.8,5.94375]
[1724529037793,1.87646379,2799.1,2798.8,5.94375]
[1724529038020,1.87646379,2799.1,2798.8,2.3708]
[1724529039002,1.87646379,2799.1,2798.7,3.57307]
[1724529039230,1.87646379,2799.0,2798.7,3.57307]
[1724529039745,1.87638618,2799.0,2798.7,3.57307]
[1724529041427,1.87638618,2798.9,2798.5,3.57325]
[1724529041897,1.87638618,2798.9,2798.6,3.57321]
[1724529044420,8.16172549,2799.1,2798.6,3.57321]
[1724529044587,1.87645457,2798.9,2798.6,3.57321]
[1724529048133,8.16172549,2799.1,2798.4,9.52625]
[1724529048134,1.87645457,2798.8,2798.4,9.52625]
[1724529048345,4.21385457,2798.8,2798.2,3.57364]
[1724529048635,1.87645457,2798.7,2798.2,3.57364]
[1724529048802,1.87645457,2798.6,2798.2,3.57364]
[1724529049292,1.8763964,2798.6,2798.2,3.57364]
[1724529049495,5.4495464,2798.7,2798.2,3.57364]
[1724529052704,1.8763964,2798.7,2798.2,3.57364]
[1724529053826,1.8763964,2798.7,2798.2,7.14728]
[1724529054757,1.8763964,2798.7,2798.3,3.57359]
[1724529055647,1.87567939,2798.7,2798.3,3.57359]
[1724529059073,1.87552764,2798.7,2798.3,3.57359]
[1724529062162,3.41774128,2798.7,2798.3,3.57359]
[1724529062359,3.41756226,2798.7,2798.3,3.57359]
[1724529065751,6.99066226,2798.7,2798.1,14.45758]
[1724529065954,1.87507185,2798.6,2798.1,14.45751]
[1724529066129,1.87507185,2798.6,2798.2,3.57371]
[1724529066963,1.87507185,2798.6,2798.1,10.88374]
[1724529066964,2.4563,2798.5,2798.1,7.31]
[1724529070602,2.4563,2798.5,2798.0,23.2739]
[1724529070765,2.4563,2798.5,2798.0,26.83509015]
[1724529072525,5.44745559,2798.6,2798.1,2.3267]
[1724529073218,5.44745559,2798.6,2798.1,5.90054]
[1724529075115,5.44717446,2798.6,2798.1,5.90054]
[1724529075467,5.44714812,2798.6,2798.1,5.90054]
[1724529076208,3.57329,2798.6,2798.1,5.90054]
[1724529076414,5.44718277,2798.6,2798.1,9.32833438]
[1724529076810,5.44718277,2798.6,2798.1,5.90054]
[1724529077326,5.4471404,2798.6,2798.1,5.90054]
[1724529080610,1.8738504,2798.7,2798.3,3.57357]
[1724529081116,5.4468904,2798.8,2798.3,3.57357]
[1724529081525,1.8738504,2798.7,2798.3,3.57357]
[1724529081727,3.57304,2798.8,2798.3,3.57357]
[1724529081728,1.8738504,2798.8,2798.3,3.57357]
[1724529081903,3.92641364,2798.9,2798.3,3.57352]
[1724529082113,1.87402182,2798.9,2798.6,3.57312]
[1724529083130,1.87402182,2799.0,2798.6,3.57311]
[1724529083740,1.87402182,2799.1,2798.6,3.57311]
[1724529084558,5.44661182,2799.1,2798.6,3.57311]
[1724529086169,5.44661182,2799.1,2798.7,2.3267]
[1724529086367,5.44661182,2799.1,2798.7,2.916681]
[1724529086767,1.87402182,2799.1,2798.7,2.916681]
[1724529090057,5.44663182,2799.1,2798.7,2.3267]
[1724529090261,1.87402182,2799.0,2798.5,5.90003]
[1724529091501,5.11482364,2799.1,2798.5,5.90003]
[1724529091712,1.87437696,2799.0,2798.5,5.90003]
[1724529096381,1.87423845,2799.0,2798.5,5.90003]
[1724529097910,5.44694845,2799.0,2798.5,5.90003]
[1724529098697,6.00714914,2799.0,2798.5,5.90003]
[1724529099410,3.57298,2798.8,2798.3,5.94699]
[1724529099633,5.11535364,2798.7,2798.2,1.11805844]
[1724529099768,6.98959209,2798.7,2798.1,13.25717]
[1724529100710,6.98959209,2798.7,2798.1,16.83094]
[1724529101287,6.98970386,2798.7,2798.1,16.83094]
[1724529101613,3.57324,2798.6,2798.1,13.25717]
[1724529101915,7.92209022,2798.6,2798.1,13.25717]
[1724529103212,7.92209022,2798.6,2798.1,5.94717]
[1724529105587,4.34885022,2798.6,2798.1,5.94717]
[1724529106091,4.34875698,2798.6,2798.1,5.94717]
[1724529106307,1.87425698,2798.6,2798.2,0.74893836]
[1724529106504,1.87425698,2798.7,2798.3,5.94698]
[1724529106708,5.44723698,2798.8,2798.3,5.94698]
[1724529110179,3.57298,2798.8,2798.3,5.94698]
[1724529110380,5.44709083,2798.8,2798.3,5.94698]
[1724529110885,5.44708884,2798.8,2798.3,5.94698]
[1724529112247,4.13296069,2799.0,2798.3,5.94698]
[1724529112248,1.87410884,2798.9,2798.4,2.3347]
[1724529112453,0.56020069,2799.0,2798.4,2.3347]
[1724529112454,6.00702953,2799.0,2798.5,3.57326]
[1724529113309,6.00702953,2799.0,2798.4,2.3347]
[1724529113497,1.87410884,2798.9,2798.4,2.3347]
[1724529114327,1.87410884,2798.9,2798.4,5.90815]
[1724529114508,1.87410884,2798.9,2798.4,7.12865238]
[1724529115611,6.00702953,2799.0,2798.5,3.5733]
[1724529115800,6.00699738,2799.0,2798.5,3.5733]
[1724529116613,2.43427738,2799.0,2798.7,2.3347]
[1724529117745,2.43427738,2799.0,2798.7,3.282824]
[1724529117952,1.87407669,2799.1,2798.7,3.282824]
[1724529118245,1.87407669,2799.1,2798.7,6.855874]
[1724529118749,1.87407669,2799.1,2798.8,3.57289]
[1724529119048,1.87407669,2799.1,2798.9,1.0428764]
[1724529120432,1.8740482,2799.1,2798.9,1.0428764]